[Event "Titled Tuesday Blitz October 04 Early 2022"]
[White "Tang, Andrew"]
[Black "Tristan, Leonardo"]
[WhiteFideId "2059630"]
[BlackFideId "113816"]
[WhiteElo "2581"]
[BlackElo "2446"]
[Result "1-0"]
[Round "04"]
[TimeControl "180+1"]
[Date "2022.10.04"]
[WhiteClock "0:00:09"]
[BlackClock "0:01:47"]

1. d4 {[%clk 0:03:00]}  d5 {[%clk 0:02:45]} 2. Bf4 {[%clk 0:02:59]}  Nf6 {[%clk 0:02:45]} 3. e3 {[%clk 0:02:59]}  e6 {[%clk 0:02:41]} 4. Nf3 {[%clk 0:02:59]}  Bd6 {[%clk 0:02:42]} 5. Nbd2 {[%clk 0:02:59]}  O-O {[%clk 0:02:40]} 6. Bd3 {[%clk 0:02:57]}  b6 {[%clk 0:02:40]} 7. Ne5 {[%clk 0:02:57]}  Ba6 {[%clk 0:02:34]} 8. Bxa6 {[%clk 0:02:40]}  Nxa6 {[%clk 0:02:34]} 9. h4 {[%clk 0:02:39]}  Nd7 {[%clk 0:02:28]} 10. h5 {[%clk 0:02:30]}  h6 {[%clk 0:02:28]} 11. Qg4 {[%clk 0:01:59]}  Bxe5 {[%clk 0:02:24]} 12. dxe5 {[%clk 0:01:58]}  Kh8 {[%clk 0:02:25]} 13. O-O {[%clk 0:01:46]}  c5 {[%clk 0:02:24]} 14. Rad1 {[%clk 0:01:42]}  Nb4 {[%clk 0:02:24]} 15. c4 {[%clk 0:01:28]}  f5 {[%clk 0:02:19]} 16. Qg6 {[%clk 0:01:25]}  Qe8 {[%clk 0:02:19]} 17. a3 {[%clk 0:01:21]}  Nd3 {[%clk 0:02:19]} 18. cxd5 {[%clk 0:01:19]}  Qxg6 {[%clk 0:02:17]} 19. hxg6 {[%clk 0:01:17]}  exd5 {[%clk 0:02:17]} 20. Nf3 {[%clk 0:01:17]}  c4 {[%clk 0:02:15]} 21. Rd2 {[%clk 0:01:08]}  Rfe8 {[%clk 0:02:15]} 22. Rfd1 {[%clk 0:01:07]}  Nf8 {[%clk 0:02:15]} 23. Ne1 {[%clk 0:00:30]}  Nxe5 {[%clk 0:02:06]} 24. Bxe5 {[%clk 0:00:27]}  Rxe5 {[%clk 0:02:05]} 25. Nf3 {[%clk 0:00:28]}  Ree8 {[%clk 0:02:01]} 26. Rxd5 {[%clk 0:00:26]}  Nxg6 {[%clk 0:02:02]} 27. Rxf5 {[%clk 0:00:26]}  Rad8 {[%clk 0:02:02]} 28. Rfd5 {[%clk 0:00:26]}  Rxd5 {[%clk 0:02:02]} 29. Rxd5 {[%clk 0:00:27]}  Rc8 {[%clk 0:02:03]} 30. Nd4 {[%clk 0:00:25]}  c3 {[%clk 0:02:02]} 31. bxc3 {[%clk 0:00:22]}  Rxc3 {[%clk 0:02:03]} 32. Nb5 {[%clk 0:00:19]}  Rb3 {[%clk 0:01:55]} 33. Nxa7 {[%clk 0:00:11]}  Rxa3 {[%clk 0:01:55]} 34. Nc8 {[%clk 0:00:10]}  Ra1+ {[%clk 0:01:46]} 35. Kh2 {[%clk 0:00:10]}  Ra2 {[%clk 0:01:47]} 36. Kg3 {[%clk 0:00:10]}  Ne7 {[%clk 0:01:47]} 37. Nxe7 {[%clk 0:00:09]} 1-0


[Site "https://www.chess.com"]

[Event "Titled Tuesday Blitz October 04 Early 2022"]
[White "Tsaruk, Maksim"]
[Black "Le, Tuan Minh"]
[WhiteFideId "13511173"]
[BlackFideId "12401153"]
[WhiteElo "2273"]
[BlackElo "2530"]
[Result "0-1"]
[Round "04"]
[TimeControl "180+1"]
[Date "2022.10.04"]
[WhiteClock "0:00:05"]
[BlackClock "0:00:37"]

1. e4 {[%clk 0:03:00]}  c5 {[%clk 0:02:59]} 2. Nf3 {[%clk 0:03:00]}  Nf6 {[%clk 0:02:59]} 3. Nc3 {[%clk 0:02:57]}  d5 {[%clk 0:02:59]} 4. Bb5+ {[%clk 0:02:56]}  Bd7 {[%clk 0:02:59]} 5. Bxd7+ {[%clk 0:02:52]}  Qxd7 {[%clk 0:02:58]} 6. exd5 {[%clk 0:02:51]}  Nxd5 {[%clk 0:02:59]} 7. d4 {[%clk 0:02:48]}  e6 {[%clk 0:02:54]} 8. Nxd5 {[%clk 0:02:48]}  Qxd5 {[%clk 0:02:54]} 9. O-O {[%clk 0:02:48]}  c4 {[%clk 0:02:50]} 10. b3 {[%clk 0:02:43]}  Nc6 {[%clk 0:02:50]} 11. Be3 {[%clk 0:02:31]}  Rc8 {[%clk 0:02:14]} 12. Qe2 {[%clk 0:02:30]}  c3 {[%clk 0:02:13]} 13. a3 {[%clk 0:02:16]}  Bd6 {[%clk 0:02:11]} 14. Rfd1 {[%clk 0:02:16]}  O-O {[%clk 0:02:06]} 15. Rd3 {[%clk 0:02:16]}  Ne7 {[%clk 0:02:06]} 16. Qe1 {[%clk 0:02:15]}  Qa5 {[%clk 0:02:06]} 17. b4 {[%clk 0:02:14]}  Qa4 {[%clk 0:02:07]} 18. Rxc3 {[%clk 0:02:13]}  Rxc3 {[%clk 0:02:06]} 19. Qxc3 {[%clk 0:02:14]}  Rc8 {[%clk 0:02:03]} 20. Qb3 {[%clk 0:02:14]}  Qxb3 {[%clk 0:01:53]} 21. cxb3 {[%clk 0:02:15]}  Rc3 {[%clk 0:01:53]} 22. Rb1 {[%clk 0:02:03]}  Nd5 {[%clk 0:01:51]} 23. Bd2 {[%clk 0:02:03]}  Rc2 {[%clk 0:01:50]} 24. Rc1 {[%clk 0:01:51]}  Rb2 {[%clk 0:01:17]} 25. Rc8+ {[%clk 0:01:52]}  Bf8 {[%clk 0:01:16]} 26. h4 {[%clk 0:01:40]}  f6 {[%clk 0:01:15]} 27. Rb8 {[%clk 0:01:30]}  Rxb3 {[%clk 0:01:10]} 28. Rxb7 {[%clk 0:01:18]}  Rxa3 {[%clk 0:01:11]} 29. b5 {[%clk 0:01:18]}  Bd6 {[%clk 0:01:07]} 30. g3 {[%clk 0:01:09]}  Rxf3 {[%clk 0:01:06]} 31. Rxa7 {[%clk 0:01:08]}  Rb3 {[%clk 0:01:05]} 32. Rd7 {[%clk 0:01:03]}  Bc7 {[%clk 0:01:00]} 33. h5 {[%clk 0:00:58]}  h6 {[%clk 0:00:58]} 34. Kg2 {[%clk 0:00:28]}  Rxb5 {[%clk 0:00:58]} 35. Be1 {[%clk 0:00:29]}  f5 {[%clk 0:00:50]} 36. Kf3 {[%clk 0:00:27]}  Bb6 {[%clk 0:00:40]} 37. Rd6 {[%clk 0:00:25]}  Kf7 {[%clk 0:00:40]} 38. Rd7+ {[%clk 0:00:25]}  Kf8 {[%clk 0:00:40]} 39. Rb7 {[%clk 0:00:15]}  Rb3+ {[%clk 0:00:40]} 40. Kg2 {[%clk 0:00:15]}  Rb2 {[%clk 0:00:41]} 41. Rb8+ {[%clk 0:00:06]}  Kf7 {[%clk 0:00:42]} 42. Rb7+ {[%clk 0:00:06]}  Kf6 {[%clk 0:00:42]} 43. Ba5 {[%clk 0:00:06]}  g6 {[%clk 0:00:35]} 44. hxg6 {[%clk 0:00:04]}  Kxg6 {[%clk 0:00:36]} 45. Bxb6 {[%clk 0:00:02]}  Rxb6 {[%clk 0:00:37]} 46. Rd7 {[%clk 0:00:02]}  Rb4 {[%clk 0:00:38]} 47. Rd6 {[%clk 0:00:03]}  Kf6 {[%clk 0:00:38]} 48. Rd8 {[%clk 0:00:03]}  Rxd4 {[%clk 0:00:38]} 49. Rf8+ {[%clk 0:00:04]}  Kg7 {[%clk 0:00:39]} 50. Re8 {[%clk 0:00:05]}  Re4 {[%clk 0:00:38]} 51. Rd8 {[%clk 0:00:05]}  Nf6 {[%clk 0:00:38]} 52. Kf3 {[%clk 0:00:05]}  Ra4 {[%clk 0:00:38]} 53. Rb8 {[%clk 0:00:06]}  Ra3+ {[%clk 0:00:38]} 54. Kg2 {[%clk 0:00:06]}  Ra2 {[%clk 0:00:39]} 55. Rb7+ {[%clk 0:00:07]}  Kg6 {[%clk 0:00:37]} 56. Kf3 {[%clk 0:00:05]}  Ng4 {[%clk 0:00:37]} 57. Kg2 {[%clk 0:00:04]}  Rxf2+ {[%clk 0:00:37]} 58. Kg1 {[%clk 0:00:05]} 0-1


[Site "https://www.chess.com"]

[Event "Titled Tuesday Blitz October 04 Early 2022"]
[White "Urazayev, Arystanbek"]
[Black "Vokhidov, Shamsiddin"]
[WhiteFideId "13709810"]
[BlackFideId "14204223"]
[WhiteElo "2441"]
[BlackElo "2619"]
[Result "1-0"]
[Round "04"]
[TimeControl "180+1"]
[Date "2022.10.04"]
[WhiteClock "0:01:14"]
[BlackClock "0:00:26"]

1. d4 {[%clk 0:03:00]}  Nf6 {[%clk 0:02:59]} 2. c4 {[%clk 0:03:01]}  e6 {[%clk 0:02:59]} 3. Nf3 {[%clk 0:03:02]}  d5 {[%clk 0:02:59]} 4. Nc3 {[%clk 0:03:02]}  Bb4 {[%clk 0:02:58]} 5. Bg5 {[%clk 0:03:01]}  h6 {[%clk 0:02:58]} 6. Bxf6 {[%clk 0:03:01]}  Qxf6 {[%clk 0:02:59]} 7. Qa4+ {[%clk 0:03:02]}  Nc6 {[%clk 0:02:58]} 8. e3 {[%clk 0:03:02]}  O-O {[%clk 0:02:57]} 9. Rc1 {[%clk 0:03:03]}  Rd8 {[%clk 0:02:48]} 10. Be2 {[%clk 0:02:50]}  dxc4 {[%clk 0:02:41]} 11. Qb5 {[%clk 0:02:50]}  Bd7 {[%clk 0:02:10]} 12. Qxc4 {[%clk 0:02:50]}  Bd6 {[%clk 0:01:58]} 13. O-O {[%clk 0:02:39]}  a6 {[%clk 0:01:53]} 14. Ne4 {[%clk 0:02:36]}  Qe7 {[%clk 0:01:53]} 15. Nc5 {[%clk 0:02:36]}  Rab8 {[%clk 0:01:49]} 16. Rfd1 {[%clk 0:02:31]}  Be8 {[%clk 0:01:48]} 17. a3 {[%clk 0:02:27]}  e5 {[%clk 0:01:46]} 18. d5 {[%clk 0:02:27]}  Na5 {[%clk 0:01:43]} 19. Qc3 {[%clk 0:02:27]}  Bxc5 {[%clk 0:01:40]} 20. Qxc5 {[%clk 0:02:20]}  Qxc5 {[%clk 0:01:22]} 21. Rxc5 {[%clk 0:02:21]}  b6 {[%clk 0:01:13]} 22. Rxc7 {[%clk 0:02:20]}  Ba4 {[%clk 0:01:13]} 23. Re1 {[%clk 0:01:51]}  Rxd5 {[%clk 0:01:11]} 24. Bxa6 {[%clk 0:01:43]}  Rbd8 {[%clk 0:01:10]} 25. h4 {[%clk 0:01:39]}  b5 {[%clk 0:01:04]} 26. e4 {[%clk 0:01:32]}  Rd1 {[%clk 0:01:02]} 27. Rxd1 {[%clk 0:01:32]}  Rxd1+ {[%clk 0:01:03]} 28. Kh2 {[%clk 0:01:32]}  Nc4 {[%clk 0:00:52]} 29. Bb7 {[%clk 0:01:29]}  Rb1 {[%clk 0:00:33]} 30. Bd5 {[%clk 0:01:23]}  Rxb2 {[%clk 0:00:34]} 31. Bxf7+ {[%clk 0:01:19]}  Kh7 {[%clk 0:00:31]} 32. h5 {[%clk 0:01:13]}  Nd6 {[%clk 0:00:26]} 33. Bg6+ {[%clk 0:01:14]}  Kg8 {[%clk 0:00:26]} 34. Rd7 {[%clk 0:01:14]} 1-0


[Site "https://www.chess.com"]

[Event "Titled Tuesday Blitz October 04 Early 2022"]
[White "Vaibhav Jayant Raut"]
[Black "Timofeev, Artyom"]
[WhiteFideId "5089034"]
[BlackFideId "4140419"]
[WhiteElo "2147"]
[BlackElo "2579"]
[Result "1-0"]
[Round "04"]
[TimeControl "180+1"]
[Date "2022.10.04"]
[WhiteClock "0:00:19"]
[BlackClock "0:00:01"]

1. d4 {[%clk 0:02:58]}  Nf6 {[%clk 0:02:59]} 2. Bf4 {[%clk 0:02:58]}  c5 {[%clk 0:02:57]} 3. e3 {[%clk 0:02:58]}  b6 {[%clk 0:02:54]} 4. Nd2 {[%clk 0:02:56]}  Bb7 {[%clk 0:02:54]} 5. Ngf3 {[%clk 0:02:55]}  e6 {[%clk 0:02:50]} 6. h3 {[%clk 0:02:54]}  Be7 {[%clk 0:02:50]} 7. c3 {[%clk 0:02:54]}  O-O {[%clk 0:02:49]} 8. Bd3 {[%clk 0:02:54]}  Nc6 {[%clk 0:02:49]} 9. O-O {[%clk 0:02:54]}  d6 {[%clk 0:02:49]} 10. Qe2 {[%clk 0:02:53]}  a6 {[%clk 0:02:42]} 11. a4 {[%clk 0:02:53]}  Qc7 {[%clk 0:02:36]} 12. Rfd1 {[%clk 0:02:52]}  Rfe8 {[%clk 0:02:35]} 13. Rac1 {[%clk 0:02:51]}  h6 {[%clk 0:02:30]} 14. Bh2 {[%clk 0:02:50]}  cxd4 {[%clk 0:02:16]} 15. exd4 {[%clk 0:02:42]}  Bf8 {[%clk 0:02:12]} 16. Ne4 {[%clk 0:02:36]}  Nd7 {[%clk 0:02:06]} 17. Bb1 {[%clk 0:02:21]}  Rad8 {[%clk 0:01:56]} 18. Qc2 {[%clk 0:02:16]}  g6 {[%clk 0:01:55]} 19. h4 {[%clk 0:02:10]}  f5 {[%clk 0:01:50]} 20. Ned2 {[%clk 0:02:04]}  Nf6 {[%clk 0:01:45]} 21. Re1 {[%clk 0:02:00]}  Ng4 {[%clk 0:01:43]} 22. Ba2 {[%clk 0:01:56]}  Qf7 {[%clk 0:01:29]} 23. Qb3 {[%clk 0:01:51]}  Nxh2 {[%clk 0:01:23]} 24. Nxh2 {[%clk 0:01:47]}  d5 {[%clk 0:01:19]} 25. Nhf3 {[%clk 0:01:37]}  Qc7 {[%clk 0:01:12]} 26. Re2 {[%clk 0:01:32]}  Na5 {[%clk 0:01:06]} 27. Qc2 {[%clk 0:01:31]}  Bg7 {[%clk 0:01:05]} 28. Rce1 {[%clk 0:01:31]}  Bc8 {[%clk 0:01:03]} 29. h5 {[%clk 0:01:24]}  gxh5 {[%clk 0:01:02]} 30. Ne5 {[%clk 0:01:19]}  Nc6 {[%clk 0:00:59]} 31. Nxc6 {[%clk 0:01:17]}  Qxc6 {[%clk 0:00:59]} 32. Nf3 {[%clk 0:01:18]}  Bd7 {[%clk 0:00:56]} 33. Bb3 {[%clk 0:01:13]}  Kh8 {[%clk 0:00:50]} 34. Qd2 {[%clk 0:01:09]}  Qd6 {[%clk 0:00:46]} 35. Bd1 {[%clk 0:01:07]}  Qf8 {[%clk 0:00:41]} 36. Qf4 {[%clk 0:01:05]}  Bf6 {[%clk 0:00:37]} 37. Ne5 {[%clk 0:01:01]}  Bxe5 {[%clk 0:00:23]} 38. Rxe5 {[%clk 0:01:02]}  Qf6 {[%clk 0:00:17]} 39. Bxh5 {[%clk 0:01:00]}  Rg8 {[%clk 0:00:16]} 40. Bf3 {[%clk 0:00:59]}  Qg5 {[%clk 0:00:15]} 41. Qh2 {[%clk 0:00:50]}  Rdf8 {[%clk 0:00:14]} 42. R5e2 {[%clk 0:00:49]}  f4 {[%clk 0:00:13]} 43. Re5 {[%clk 0:00:48]}  Qf6 {[%clk 0:00:13]} 44. Rh5 {[%clk 0:00:47]}  Rg6 {[%clk 0:00:13]} 45. Rh4 {[%clk 0:00:42]}  Kg7 {[%clk 0:00:13]} 46. a5 {[%clk 0:00:41]}  bxa5 {[%clk 0:00:12]} 47. Kh1 {[%clk 0:00:40]}  a4 {[%clk 0:00:12]} 48. Be2 {[%clk 0:00:40]}  Rg5 {[%clk 0:00:06]} 49. Bd3 {[%clk 0:00:36]}  Be8 {[%clk 0:00:06]} 50. Bxa6 {[%clk 0:00:32]}  Bg6 {[%clk 0:00:06]} 51. Bb5 {[%clk 0:00:30]}  Be4 {[%clk 0:00:05]} 52. f3 {[%clk 0:00:29]}  Bc2 {[%clk 0:00:05]} 53. Bd7 {[%clk 0:00:28]}  Bf5 {[%clk 0:00:05]} 54. Qxf4 {[%clk 0:00:27]}  a3 {[%clk 0:00:03]} 55. bxa3 {[%clk 0:00:27]}  Rg6 {[%clk 0:00:03]} 56. a4 {[%clk 0:00:26]}  Qe7 {[%clk 0:00:02]} 57. Bb5 {[%clk 0:00:21]}  Qa3 {[%clk 0:00:02]} 58. Qc7+ {[%clk 0:00:21]}  Rf7 {[%clk 0:00:02]} 59. Qe5+ {[%clk 0:00:21]}  Rff6 {[%clk 0:00:01]} 60. Rh2 {[%clk 0:00:21]}  Qxc3 {[%clk 0:00:01]} 61. Bf1 {[%clk 0:00:19]}  Qd2 {[%clk 0:00:01]} 62. Qc7+ {[%clk 0:00:19]} 1-0


[Site "https://www.chess.com"]

[Event "Titled Tuesday Blitz October 04 Early 2022"]
[White "Wong, Yinn Long"]
[Black "Kim, Sergey"]
[WhiteFideId "5707684"]
[BlackFideId "13700570"]
[WhiteElo "2271"]
[BlackElo "2607"]
[Result "1/2-1/2"]
[Round "04"]
[TimeControl "180+1"]
[Date "2022.10.04"]
[WhiteClock "0:00:07"]
[BlackClock "0:00:03"]

1. d4 {[%clk 0:03:00]}  Nf6 {[%clk 0:02:59]} 2. Nf3 {[%clk 0:03:00]}  g6 {[%clk 0:02:59]} 3. b3 {[%clk 0:03:00]}  Bg7 {[%clk 0:03:00]} 4. Bb2 {[%clk 0:03:01]}  d6 {[%clk 0:03:00]} 5. e3 {[%clk 0:03:00]}  O-O {[%clk 0:03:00]} 6. Be2 {[%clk 0:03:01]}  e5 {[%clk 0:02:59]} 7. dxe5 {[%clk 0:03:01]}  Nfd7 {[%clk 0:03:00]} 8. c4 {[%clk 0:03:01]}  dxe5 {[%clk 0:03:00]} 9. Nc3 {[%clk 0:02:44]}  Nc6 {[%clk 0:02:49]} 10. O-O {[%clk 0:02:43]}  e4 {[%clk 0:02:45]} 11. Nd2 {[%clk 0:02:34]}  f5 {[%clk 0:02:45]} 12. Qc2 {[%clk 0:02:30]}  Nde5 {[%clk 0:02:43]} 13. Rad1 {[%clk 0:02:30]}  Qe7 {[%clk 0:02:42]} 14. Nd5 {[%clk 0:02:29]}  Qf7 {[%clk 0:02:42]} 15. b4 {[%clk 0:02:26]}  Be6 {[%clk 0:02:35]} 16. b5 {[%clk 0:02:26]}  Nd8 {[%clk 0:02:19]} 17. Nf4 {[%clk 0:02:09]}  a6 {[%clk 0:01:58]} 18. a4 {[%clk 0:01:58]}  Kh8 {[%clk 0:01:33]} 19. Nxe6 {[%clk 0:01:41]}  Nxe6 {[%clk 0:01:33]} 20. c5 {[%clk 0:01:25]}  axb5 {[%clk 0:01:28]} 21. axb5 {[%clk 0:01:26]}  Ra2 {[%clk 0:01:13]} 22. Rb1 {[%clk 0:01:26]}  Qe7 {[%clk 0:01:05]} 23. Nc4 {[%clk 0:01:07]}  Rxb2 {[%clk 0:00:55]} 24. Nxb2 {[%clk 0:01:01]}  Nxc5 {[%clk 0:00:50]} 25. Rfd1 {[%clk 0:00:44]}  b6 {[%clk 0:00:47]} 26. h3 {[%clk 0:00:43]}  g5 {[%clk 0:00:46]} 27. Rd5 {[%clk 0:00:39]}  f4 {[%clk 0:00:44]} 28. exf4 {[%clk 0:00:34]}  gxf4 {[%clk 0:00:44]} 29. Bf1 {[%clk 0:00:34]}  Qf6 {[%clk 0:00:33]} 30. Re1 {[%clk 0:00:29]}  e3 {[%clk 0:00:32]} 31. Nc4 {[%clk 0:00:26]}  Nxc4 {[%clk 0:00:20]} 32. Bxc4 {[%clk 0:00:26]}  Qh4 {[%clk 0:00:16]} 33. Bf1 {[%clk 0:00:07]}  Ne6 {[%clk 0:00:07]} 34. Qe2 {[%clk 0:00:04]}  Nd4 {[%clk 0:00:05]} 35. Rxd4 {[%clk 0:00:02]}  Bxd4 {[%clk 0:00:04]} 36. Rd1 {[%clk 0:00:03]}  Qxf2+ {[%clk 0:00:03]} 37. Qxf2 {[%clk 0:00:03]}  exf2+ {[%clk 0:00:04]} 38. Kh1 {[%clk 0:00:04]}  Bc5 {[%clk 0:00:04]} 39. Rd7 {[%clk 0:00:04]}  Re8 {[%clk 0:00:04]} 40. Bd3 {[%clk 0:00:01]}  Re1+ {[%clk 0:00:04]} 41. Kh2 {[%clk 0:00:02]}  f1=Q {[%clk 0:00:04]} 42. Bxf1 {[%clk 0:00:03]}  Rxf1 {[%clk 0:00:04]} 43. Rxc7 {[%clk 0:00:04]}  Bf2 {[%clk 0:00:03]} 44. Rc8+ {[%clk 0:00:05]}  Kg7 {[%clk 0:00:02]} 45. h4 {[%clk 0:00:05]}  Bg3+ {[%clk 0:00:02]} 46. Kh3 {[%clk 0:00:06]}  h5 {[%clk 0:00:02]} 47. Rc7+ {[%clk 0:00:07]}  Kf6 {[%clk 0:00:02]} 48. Rc6+ {[%clk 0:00:07]}  Ke5 {[%clk 0:00:03]} 49. Re6+ {[%clk 0:00:07]}  Kxe6 {[%clk 0:00:03]} 1/2-1/2


[Site "https://www.chess.com"]

[Event "Titled Tuesday Blitz October 04 Early 2022"]
[White "Bortnyk, Mykola"]
[Black "Kravtsiv, Martyn"]
[WhiteFideId "14120836"]
[BlackFideId "14113147"]
[WhiteElo "2582"]
[BlackElo "2694"]
[Result "1-0"]
[Round "05"]
[TimeControl "180+1"]
[Date "2022.10.04"]
[WhiteClock "0:01:15"]
[BlackClock "0:00:06"]

1. e4 {[%clk 0:03:00]}  e5 {[%clk 0:02:59]} 2. Nf3 {[%clk 0:03:00]}  Nc6 {[%clk 0:03:00]} 3. Bb5 {[%clk 0:03:01]}  a6 {[%clk 0:02:59]} 4. Ba4 {[%clk 0:03:01]}  Nf6 {[%clk 0:02:59]} 5. Qe2 {[%clk 0:03:02]}  b5 {[%clk 0:02:57]} 6. Bb3 {[%clk 0:03:01]}  Be7 {[%clk 0:02:56]} 7. O-O {[%clk 0:03:02]}  O-O {[%clk 0:02:55]} 8. c3 {[%clk 0:03:02]}  d5 {[%clk 0:02:54]} 9. d3 {[%clk 0:03:02]}  Bb7 {[%clk 0:02:50]} 10. Rd1 {[%clk 0:03:01]}  d4 {[%clk 0:02:47]} 11. Nbd2 {[%clk 0:02:55]}  a5 {[%clk 0:02:41]} 12. a4 {[%clk 0:02:51]}  dxc3 {[%clk 0:02:29]} 13. bxc3 {[%clk 0:02:50]}  b4 {[%clk 0:02:29]} 14. Bb2 {[%clk 0:02:43]}  Nd7 {[%clk 0:01:57]} 15. Bd5 {[%clk 0:02:25]}  Bd6 {[%clk 0:01:44]} 16. Nc4 {[%clk 0:02:19]}  Qe7 {[%clk 0:01:44]} 17. cxb4 {[%clk 0:02:10]}  axb4 {[%clk 0:01:41]} 18. Rdc1 {[%clk 0:01:53]}  Ra6 {[%clk 0:01:40]} 19. Ne3 {[%clk 0:01:46]}  g6 {[%clk 0:01:35]} 20. Bc4 {[%clk 0:01:35]}  Ra7 {[%clk 0:01:34]} 21. Nd5 {[%clk 0:01:34]}  Qd8 {[%clk 0:01:23]} 22. Qe3 {[%clk 0:01:27]}  Re8 {[%clk 0:00:16]} 23. Bb5 {[%clk 0:01:20]}  Nd4 {[%clk 0:00:07]} 24. Bxd7 {[%clk 0:01:15]}  Qxd7 {[%clk 0:00:06]} 25. Nf6+ {[%clk 0:01:15]} 1-0


[Site "https://www.chess.com"]

[Event "Titled Tuesday Blitz October 04 Early 2022"]
[White "Gritsenko, Nikolai"]
[Black "Kevlishvili, Robby"]
[WhiteFideId "14112493"]
[BlackFideId "1040634"]
[WhiteElo "2389"]
[BlackElo "2585"]
[Result "1/2-1/2"]
[Round "05"]
[TimeControl "180+1"]
[Date "2022.10.04"]
[WhiteClock "0:00:15"]
[BlackClock "0:00:50"]

1. e4 {[%clk 0:03:00]}  e6 {[%clk 0:02:55]} 2. Nf3 {[%clk 0:03:00]}  d5 {[%clk 0:02:54]} 3. Nc3 {[%clk 0:03:00]}  dxe4 {[%clk 0:02:54]} 4. Nxe4 {[%clk 0:02:59]}  Nf6 {[%clk 0:02:55]} 5. Nxf6+ {[%clk 0:02:58]}  Qxf6 {[%clk 0:02:56]} 6. d4 {[%clk 0:02:58]}  h6 {[%clk 0:02:56]} 7. Bd3 {[%clk 0:02:57]}  Bd6 {[%clk 0:02:57]} 8. Qe2 {[%clk 0:02:47]}  Bd7 {[%clk 0:02:56]} 9. Ne5 {[%clk 0:02:45]}  Nc6 {[%clk 0:02:46]} 10. Nxd7 {[%clk 0:02:41]}  Kxd7 {[%clk 0:02:47]} 11. c3 {[%clk 0:02:38]}  Rad8 {[%clk 0:02:46]} 12. Be3 {[%clk 0:02:25]}  Kc8 {[%clk 0:02:41]} 13. O-O-O {[%clk 0:02:24]}  Bf4 {[%clk 0:02:39]} 14. Bxf4 {[%clk 0:02:06]}  Qxf4+ {[%clk 0:02:40]} 15. Kb1 {[%clk 0:02:06]}  Kb8 {[%clk 0:02:38]} 16. g3 {[%clk 0:02:02]}  Qd6 {[%clk 0:02:36]} 17. Rhe1 {[%clk 0:01:59]}  Ne7 {[%clk 0:02:29]} 18. Qe5 {[%clk 0:01:52]}  Qxe5 {[%clk 0:02:29]} 19. Rxe5 {[%clk 0:01:50]}  c6 {[%clk 0:02:30]} 20. Rde1 {[%clk 0:01:47]}  Kc7 {[%clk 0:02:29]} 21. f4 {[%clk 0:01:44]}  g6 {[%clk 0:02:28]} 22. Kc2 {[%clk 0:01:41]}  h5 {[%clk 0:02:28]} 23. a4 {[%clk 0:01:27]}  Nd5 {[%clk 0:02:25]} 24. Bc4 {[%clk 0:01:16]}  a5 {[%clk 0:02:21]} 25. Bxd5 {[%clk 0:01:15]}  Rxd5 {[%clk 0:02:19]} 26. h4 {[%clk 0:01:08]}  Rhd8 {[%clk 0:02:14]} 27. b3 {[%clk 0:01:06]}  b5 {[%clk 0:02:05]} 28. Rxd5 {[%clk 0:01:04]}  Rxd5 {[%clk 0:01:58]} 29. Re5 {[%clk 0:00:59]}  bxa4 {[%clk 0:01:50]} 30. bxa4 {[%clk 0:00:56]}  c5 {[%clk 0:01:45]} 31. c4 {[%clk 0:00:32]}  Rxd4 {[%clk 0:01:38]} 32. Rxc5+ {[%clk 0:00:32]}  Kb6 {[%clk 0:01:39]} 33. Rb5+ {[%clk 0:00:31]}  Ka6 {[%clk 0:01:39]} 34. Kc3 {[%clk 0:00:30]}  Rd1 {[%clk 0:01:36]} 35. Rc5 {[%clk 0:00:26]}  Rg1 {[%clk 0:01:35]} 36. Rc7 {[%clk 0:00:26]}  Rxg3+ {[%clk 0:01:29]} 37. Kd4 {[%clk 0:00:26]}  Rg4 {[%clk 0:01:30]} 38. Ke5 {[%clk 0:00:24]}  Rxh4 {[%clk 0:01:26]} 39. c5 {[%clk 0:00:20]}  f6+ {[%clk 0:01:20]} 40. Kd6 {[%clk 0:00:18]}  Rxf4 {[%clk 0:01:19]} 41. Rc6+ {[%clk 0:00:18]}  Ka7 {[%clk 0:01:19]} 42. Rc7+ {[%clk 0:00:18]}  Kb8 {[%clk 0:01:19]} 43. Rf7 {[%clk 0:00:18]}  Rd4+ {[%clk 0:01:16]} 44. Kc6 {[%clk 0:00:18]}  h4 {[%clk 0:00:49]} 45. Rf8+ {[%clk 0:00:15]}  Ka7 {[%clk 0:00:49]} 46. Rf7+ {[%clk 0:00:15]}  Kb8 {[%clk 0:00:49]} 47. Rf8+ {[%clk 0:00:15]}  Ka7 {[%clk 0:00:50]} 48. Rf7+ {[%clk 0:00:15]}  Kb8 {[%clk 0:00:50]} 1/2-1/2


[Site "https://www.chess.com"]